Cogmind - Beta 15 @@@ ROGUE MODE // 2025.05.07 @ 13:18:17 Player: celerysam Result: Destroyed by G-47 Trooper with Particle Gun Performance ------------- Evolutions (0) 0 Regions Visited (1) 200 Robots Destroyed (10) 50 Value Destroyed (178) 178 Prototype IDs (0) 0 Alien Tech Used (0) 0 Bonus (0) 0 TOTAL SCORE: 428 Bonus ------- None Cogmind --------- Core Integrity 0/250 Matter 90/300 Energy 250/250 System Corruption 0% Temperature Cool (66) Movement Rolling (90) Location -10/Materials Parts ------- > --- POWER (1) -------- Ion Engine > --- PROPULSION (2) --- Armored Wheel Armored Wheel > --- UTILITY (2) ------ Small Storage Unit Visual Processing Unit > --- WEAPON (2) ------- Improved Light Cannon Improved Light Cannon > --- INVENTORY (8) ---- Light Ion Engine Wheel Wheel Armored Wheel Armored Wheel Heavy EM Pulse Gun Rocket Launcher Peak State ------------ > --- POWER ------------ Ion Engine > --- PROPULSION ------- Armored Wheel Armored Wheel > --- UTILITY ---------- Small Storage Unit Visual Processing Unit > --- WEAPON ----------- Improved Light Cannon Improved Light Cannon > --- INVENTORY -------- Light Ion Engine Light Treads Light Treads Wheel Wheel Armored Wheel Armored Wheel Rocket Launcher [Rating: 13] Favorites ----------- Power Light Ion Engine Engine Light Ion Engine Propulsion Aluminum Leg Leg Aluminum Leg Wheel Wheel Utility Small Storage Unit Storage Small Storage Unit Processor Visual Processing Unit Weapon Assault Rifle Energy Gun EM Pulse Gun Ballistic Gun Assault Rifle Ballistic Cannon Improved Light Cannon Launcher Grenade Launcher Build | -11 -10 ------- Run | Yrd Mat Slots Evolved . | . . Power . | . . Propulsion . | . . Utility . | . . Weapon . | . . Parts Attached 19 | 7 12 Power 2 | 2 . Engine 2 | 2 . Core . | . . Reactor . | . . Propulsion 7 | 2 5 Treads . | . . Leg 2 | 2 . Wheel 5 | . 5 Hover . | . . Flight . | . . Utility 2 | 1 1 Device . | . . Storage 1 | 1 . Processor 1 | . 1 Hackware . | . . Protection . | . . Artifact . | . . Weapon 8 | 2 6 Energy Gun 1 | 1 . Energy Cannon . | . . Ballistic Gun 2 | 1 1 Ballistic Cannon 4 | . 4 Launcher 1 | . 1 Special Weapon . | . . Impact Weapon . | . . Slashing Weapon . | . . Piercing Weapon . | . . Special Melee Weapon . | . . Unidentified Prototypes . | . . Parts Lost 6 | . 6 Power 1 | . 1 Propulsion 2 | . 2 Utility . | . . Weapon 3 | . 3 Highest Loss Streak 6 | . 6 To Critical Strikes . | . . Average Backups 6 | 4 6 Power . | . 1 Propulsion 4 | 3 4 Utility . | . . Weapon . | . 1 Tool/Special . | . . Unused Backups 8 | . 8 Power 1 | . 1 Propulsion 6 | . 6 Utility . | . . Weapon 1 | . 1 Tool/Special . | . . Average Slot Usage (%) 76 | . 76 Engine 9 | . 9 Leg 12 | . 12 Wheel 12 | . 12 Storage 14 | . 14 Processor 1 | . 1 Energy Gun 6 | . 6 Ballistic Gun 10 | . 10 Ballistic Cannon 7 | . 7 Peak Build Rating 13 | 6 13 Average Rating 5 | 3 6 On Entrance 3 | . 6 Naked Turns . | . . Heaviest Build 18 | 14 18 Greatest Support 24 | 20 24 Greatest Overweight (x) . | . . Average Overweight (x) . | . . Largest Inventory Capacity 8 | 8 8 Average Capacity 7 | 6 8 Most Carried 8 | 6 8 Average Carried 6 | 4 6 Final Capacity 8 | 8 8 Final Carried 7 | 6 7 Class Distribution -------------------- 100% | Mutant Dominant Class ---------------- Mutant | -10/Materials Resources | -11 -10 ----------- Run | Yrd Mat Matter Collected 344 | 258 86 Remotely . | . . Salvage Created 129 | . 129 Parts 10 | . 10 Haulers Intercepted . | . . Recyclers Shooed . | . . Parts Field Recycled . | . . Retrieved Matter . | . . Parts Self-Destructed . | . . Prevented . | . . Kills | -11 -10 ------- Run | Yrd Mat Combat Hostiles Destroyed 6 | . 6 Guns 2 | . 2 Cannons 2 | . 2 AOE 2 | . 2 Classes Destroyed 5 | . 5 Builder 2 | . 2 Tunneler 1 | . 1 Watcher 1 | . 1 Swarmer 3 | . 3 Grunt 3 | . 3 Best Kill Streak 6 | . 6 Combat Bots Only 2 | . 2 Max Kills in Single Turn 3 | . 3 Gunslinging . | . . Exploded 1 | . 1 Melee . | . . Uniques/NPCs Destroyed . | . . Combat | -11 -10 -------- Run | Yrd Mat Hostile Shots Fired 98 | . 98 Missed 25 | . 25 Hits 73 | . 73 Projectile 73 | . 73 Critical Strikes 2 | . 2 Damage Taken 848 | . 848 Core 256 | . 256 Absorbed by Shields . | . . Core Remaining (%) 100 | 100 . Volleys Fired 32 | . 32 Largest 2 | . 2 Hottest 66 | . 66 Shots Fired 57 | . 57 Gun 30 | . 30 Cannon 24 | . 24 Launcher 3 | . 3 Special . | . . Kinetic 44 | . 44 Thermal . | . . Explosive 3 | . 3 Electromagnetic 10 | . 10 Robot Hit Streak 7 | . 7 Robot Miss Streak 3 | . 3 Penetration Max . | . . Secondary Targets 1 | . 1 Max Gunslinging Chain 1 | . 1 Shots Hit Robots 36 | . 36 Core Hits 14 | . 14 Critical Kills . | . . Critical Parts Destroyed . | . . Critical Strikes 1 | . 1 Blast 1 | . 1 Melee Attacks . | . . Impact . | . . Slashing . | . . Piercing . | . . Sneak Attacks . | . . Combat Hostiles . | . . Follow-up Attacks . | . . Damage Inflicted 943 | . 943 Guns 250 | . 250 Cannons 319 | . 319 Explosions 374 | . 374 Melee . | . . Ramming . | . . Kinetic 483 | . 483 Thermal . | . . Explosive 374 | . 374 Electromagnetic 86 | . 86 Impact . | . . Slashing . | . . Piercing . | . . Highest Corruption . | . . Average Corruption . | . . Corruption Purged . | . . Corruption Blocked . | . . Overload Shots . | . . Overflow Damage 30 | . 30 Projectiles 4 | . 4 Explosions 26 | . 26 Melee . | . . Knockbacks 3 | . 3 Impact . | . . Kinetic 3 | . 3 Secondary . | . . Self-Inflicted Damage 68 | . 68 Shots 3 | . 3 Rammed . | . . Targets Rammed . | . . Kicked . | . . Crushed . | . . Highest Temperature 129 | . 129 Average Temperature 48 | . 48 Received Heat Transfer 384 | . 384 Siege Activations . | . . Martial Activations . | . . Shielding Activations . | . . Robots Disrupted . | . . Combat Hostiles . | . . Robots Corrupted . | . . Combat Hostiles . | . . Parts Fried . | . . Impact Corruptions . | . . Robots Melted . | . . Combat Hostiles . | . . Parts Melted . | . . Heat Transferred . | . . Parts Sabotaged . | . . Parts Stolen . | . . Parts Stripped . | . . Power Chain Reactions . | . . Alert | -11 -10 ------- Run | Yrd Mat Maximum Alert Level . | . . Low Security (%) 100 | 100 100 Level 1 . | . . Level 2 . | . . Level 3 . | . . Level 4 . | . . Level 5 . | . . High Security . | . . Max Security . | . . Peak Influence 123 | . 123 Initial . | . . Average 32 | . 43 Influence Increases 231 | . 231 Destroy 0b10 Robot/C 120 | . 120 Destroy 0b10 Robot/NC 20 | . 20 Destroy Leader 32 | . 32 Destroy Structure 14 | . 14 Lose Combat Pursuer 45 | . 45 Influence Decreases 120 | . 120 Time Decay 80 | . 80 Lost Part 40 | . 40 Squads Dispatched 3 | . 3 Investigation 1 | . 1 Extermination . | . . Reinforcement 2 | . 2 Assault . | . . Garrison . | . . Intercept . | . . Searches Triggered . | . . Construction Impeded . | . . Haulers Reinforced . | . . Active Scanning Responses . | . . Cargo Convoy Interrupts . | . . Stealth | -11 -10 --------- Run | Yrd Mat Distress Signals 1 | . 1 Communications Jammed . | . . Distress Signals . | . . Times Spotted 14 | . 14 Peak Tracking Total 4 | . 4 Tactical Retreats 2 | . 2 Traps | -11 -10 ------- Run | Yrd Mat Traps Triggered . | . . Indirectly . | . . Trap Hack Attempts . | . . Triggered . | . . Disarmed . | . . Reprogrammed . | . . Reused . | . . Traps Extracted . | . . Installed . | . . Triggered . | . . Machines | -11 -10 ---------- Run | Yrd Mat Machines Disabled . | . . Max in Single Turn . | . . Machines Repaired . | . . Machines Dismantled . | . . Machines Sabotaged . | . . Overloaded Fab Kills . | . . Hacking | -11 -10 --------- Run | Yrd Mat Machines Accessed . | . . Terminals . | . . Fabricators . | . . Repair Stations . | . . Recycling Units . | . . Scanalyzers . | . . Garrison Access . | . . Total Hacks . | . . Successful . | . . Failed . | . . Catastrophic . | . . Database Lockouts . | . . Manual . | . . Terminals . | . . Fabricators . | . . Repair Stations . | . . Recycling Units . | . . Scanalyzers . | . . Garrison Access . | . . Terminal Hacks . | . . Fabricator Hacks . | . . Repair Station Hacks . | . . Recycling Unit Hacks . | . . Scanalyzer . | . . Garrison Access Hacks . | . . Unauthorized Hacks . | . . Terminals . | . . Fabricators . | . . Repair Stations . | . . Recycling Units . | . . Scanalyzers . | . . Garrison Access . | . . Data Cores Recovered . | . . Used . | . . Hacking Detections . | . . Full Trace Events . | . . Feedback Events . | . . Feedback Blocked . | . . Robot Schematics Acquired . | . . Robots Built . | . . Authchips . | . . Time . | . . Total Robot Build Rating . | . . Part Schematics Acquired . | . . Parts Built . | . . Authchips . | . . Time . | . . Total Part Build Rating . | . . Parts Repaired . | . . Time . | . . Parts Recycled . | . . Recycled Matter . | . . Retrieved Matter . | . . Retrieved Components . | . . Parts Scanalyzed . | . . Part Schematics Acquired . | . . Parts Damaged . | . . Bothacking | -11 -10 ------------ Run | Yrd Mat Used RIF Installer . | . . Robots Hacked . | . . Non-combat . | . . Combat . | . . Robot Hacks Applied . | . . Relay Couplers Released . | . . Fabnet Peak Effective % . | . . Robots Rewired . | . . Allies Hacked . | . . Hacks Repelled . | . . Allies | -11 -10 -------- Run | Yrd Mat Total Allies . | . . Largest Group . | . . Highest-Rated Group . | . . Highest-Rated Ally . | . . Total Orders . | . . Ally Attacks . | . . Total Damage . | . . Kills . | . . Allies Corrupted . | . . Allies Melted . | . . Intel | -11 -10 ------- Run | Yrd Mat Active Infowar (turns) 17 | . 17 Optics 17 | . 17 Robot Analysis Total . | . . Derelict Logs Recovered . | . . Drone Launches . | . . Drone Recoveries . | . . Exploration | -11 -10 ------------- Run | Yrd Mat Turns Passed 341 | 84 257 Spaces Moved 190 | 68 122 Core 19 | 19 . Treads . | . . Legs 97 | 49 48 Wheels 74 | . 74 Hover . | . . Flight . | . . Fastest Speed 50 | 50 80 Average Speed 98 | 100 97 Slowest Speed 120 | 120 120 Overloaded Moves . | . . Propulsion Burnouts . | . . Robots Hopped . | . . Potential Cave-ins . | . . Cave-ins Triggered . | . . Exploration Rate (%) 15 | 5 26 Regions Visited 1 Branch Regions . Pre-discovered Areas . | . . Known Exits Taken . | . . Unknown Exits Taken 1 | 1 . Scrap Searched . | . . Spaces Dug . | . . Terrain Destroyed 16 | . 16 Melee . | . . Projectile 2 | . 2 AOE 14 | . 14 Terrain Rammed . | . . Walls Destroyed . | . . Machines Disabled . | . . Actions | -11 -10 --------- Run | Yrd Mat Total 288 | 80 208 Wait 22 | . 22 Move 189 | 67 122 Hop . | . . Pick Up 17 | 6 11 Fast Attach 7 | 6 1 Attach 6 | . 6 Detach . | . . Swap 7 | 1 6 Drop 8 | . 8 Fire 32 | . 32 Melee . | . . Ram . | . . Kick . | . . Crush . | . . Escape Stasis . | . . Rewire . | . . Trap . | . . Miscellaneous . | . . Route ------- -11/Scrapyard -10/Materials (discovered 1 exit: [*Min]) History --------- Turn | Location | Event 2 | -11/Scrapyard | Met Revision 17 4 | -11/Scrapyard | Discovered new exit (range 15) 85 | -11/Scrapyard | Entered Materials 203 | -10/Materials | Core integrity fell below 50% 239 | -10/Materials | Lost 6 parts (1p2n3w) 280 | -10/Materials | Core integrity fell below 20% 329 | -10/Materials | Discovered new exit (range 18) 342 | -10/Materials | Destroyed by G-47 Trooper with Particle Gun Last Messages --------------- 00313_ K-01 Serf collects debris. 00314_ Dropped Imp. Light Cannon. 00315_ R-06 Scavenger collects Wheel. 00316_ Dropped Imp. Light Cannon. 00317_ K-01 Serf collects debris. 00318_ R-06 Scavenger collects Imp. Light Cannon. 00318_ W-16 Scout destroyed. 00320_ K-01 Serf collects debris. 00321_ R-06 Scavenger collects Com. Wheel. 00323_ Acquired 22 matter. 00324_ K-01 Serf collects debris. 00325_ Acquired Visual Processing Unit. 00328_ K-01 Serf collects debris. 00329_ EXIT=FOUND 00332_ K-01 Serf collects debris. 00333_ Dropped Lgt. Treads. 00334_ Acquired Hvy. EM Pulse Gun. 00336_ K-01 Serf collects debris. 00336_ Critical hit (Burn: +37). Map ----- +----------------------------------------------------+ | | | ???????????????????????????????? | | ???????????????????????????????? | | ???????????????????????????????? | | ???????????????????????????????? | | ???????????????????????????????? | | ???????????????????????????????? | | ???????????????????????????????? | | ???????????????????????????????? | | ??????????? ????????????????? | | ??????????? < ???????????????? | | ??????????? ????????????????? | | ??????????? ????????????????? | | ??????????? ????????????????? | | ??????????# #????????????????? | | ??????????# #####????????????? | | ??????????+ ?????????????? | | ??????????# ??????????????? | | ??????????# g???????????????? | | ??????????# #??###???????????? | | ??????????# #? #???????????? | | ??????##### # #???????????? | | ??????#!! g ??????????????? | | ??????#!! #????????????????? | | ??????#[[ #????????????????? | | ??????#@[= #????????????????? | | ??????#[ = #????????????????? | | ??????#[[ #????????????????? | | ??????##### #????????????????? | | ?????????## #####????????????? | | ?????????#" #????????????? | | ???? + * #????????????? | | ???# # ]#????????????? | | ???# ?#% #????????????? | | ???#? ??# ] #????????????? | | ???? ???# ]]#????????????? | | ???# ????# "####????????????? | | ???##?????# % ##???????????????? | | ??????????#% %#???????????????## | | ?????#######+#######??????????# | | ?????# % ############ | | ?????# + | | ?????# ######## | | ?????# #??????# "T" | | ?????# #??????# | | ?????# #??????#^ | | ?????##+################### ^ | | ??????# ??????????+ ! " | | ??????#???????????# """ | | ??????????????????# | +----------------------------------------------------+ Best States ------------- Heat Dissipation 25 Energy Generation 10 Energy Capacity 250 Matter Stores 300 Matter Capacity 300 Sight Range 18 Terrain Scan Density 10 Evasion (%) 55 Item Schematics ----------------- None Robot Schematics ------------------ None Fabricated ------------ Nothing Repaired ---------- Nothing Alien Tech Used ----------------- None Achievements -------------- None Challenges ------------ None Game ------ Seed PiercingSpliceSuite Manual? 0 Play Time 00:05:45 Cumulative 236.1 hours Start 2025.05.07 @ 13:10:46 End 2025.05.07 @ 13:18:17 Sessions 1 Manual Loads 0 Difficulty Rogue Special Mode None Game No. 354 Rogue 354 Adventurer 0 Explorer 0 Win Type - Total 1 Types 1/0/0/0/0/0/0/0/0/0 Lore% 45 Gallery% 59 Achievement% 43 Wizard Run 0 Options --------- Layout 1 ASCII 0 Keyboard 0 Movement Mouse Keybinds 0 Fullscreen 2 Font 24/Smallcaps Map View 50x35 Zoom Use 0% Tactical HUD 1 Map Filters NONE Filters NONE Steam 1 RUN: 314084c9-832c-4400-8175-c8adc5e5bddd